fUSD/lending_fUSD_20250313
["ID","MTS","AMOUNT","RATE_DAILY","PERIOD"]
[356075018,1741882960953,-2285.753232,0.0002749,2]
[356075019,1741882960975,-40.52084659,0.00027492,2]
[356075020,1741882961699,-209.47915341,0.00027492,2]
[356075021,1741882961721,-182.0,0.00027621,30]
[356075022,1741882961743,-227.01,0.00027648,30]
[356075023,1741882961765,-204.9826961,0.000279,4]
[356075024,1741882961786,-232.7463,0.0002821,41]
[356075025,1741882961807,-167.19,0.00028297,2]
[356075026,1741882961828,-572.4486,0.00028299,2]
[356075027,1741882961849,-787.7183,0.00028327,2]
[356075028,1741882961870,-1025.149,0.00028399,19]
[356075029,1741882961894,-348.0,0.00028399,15]
[356075030,1741882961916,-6043.27595049,0.000284,2]
[356075031,1741882962204,-3956.72404951,0.000284,2]
[356075032,1741882962226,-6043.27595049,0.000284,2]
[356075033,1741882962715,-8773.10614951,0.000284,2]
[356075034,1741882962736,-1226.89385049,0.000284,2]
[356075035,1741882962883,-5328.20534951,0.000284,2]
[356075036,1741882962907,-150.0,0.00028434,2]
[356075037,1741882962929,-1000.0,0.00028449,2]
[356075038,1741882962952,-150.0,0.00028449,2]
[356075039,1741882962974,-500.0,0.00028449,18]
[356075040,1741882962997,-566.19249947,0.00028449,18]
[356075041,1741882963020,-2305.60215102,0.0002845,30]
[356075042,1741882963611,-150.0,0.00028434,2]
[356075043,1741882963635,-9850.0,0.0002845,30]
[356075044,1741882963902,-10000.0,0.0002845,30]
[356075045,1741882965033,-10000.0,0.0002845,30]
[356075046,1741882967291,-10000.0,0.0002845,30]
[356075047,1741883108804,179479.12149708,0.0001,2]
[356075056,1741883311366,376.45645982,7.888e-05,2]
[356075092,1741883431833,-3759.34505082,0.000236,5]
[356075094,1741883431844,-1536.37949649,0.000236,5]
[356075096,1741883431856,-251.27545269,0.000236,5]
[356075098,1741883431865,-10.72454735,0.0002545,2]
[356075100,1741883431887,-694.66545265,0.0002545,2]
[356075101,1741883431897,-204.98269598,0.000259,4]
[356075102,1741883431907,-158.0,0.00026235,120]
[356075103,1741883431917,-459.0,0.00026235,120]
[356075104,1741883431926,-723.76,0.00026849,2]
[356075105,1741883431936,-453.77,0.0002722,120]
[356075106,1741883431945,-3625.90937029,0.0002731,120]
[356075107,1741883431956,-911.24347032,0.0002731,120]
[356075108,1741883431997,-1171.99849607,0.0002731,120]
[356075109,1741883432008,-82.80866332,0.0002731,120]
[356075110,1741883432018,-169.33989739,0.00027454,2]
[356075111,1741883432053,-1321.91963575,0.00027454,2]
[356075112,1741883432110,-5483.94046686,0.00027454,2]
[356075113,1741883432119,-206.09,0.00027483,2]
[356075114,1741883432128,-206.09,0.00027555,2]
[356075115,1741883432137,-206.09,0.00027627,2]
[356075116,1741883432146,-206.09,0.000277,2]
[356075117,1741883432155,-705.39,0.00027714,2]
[356075118,1741883432163,-206.09,0.00027772,2]
[356075119,1741883432173,-300.0,0.000278,10]
[356075120,1741883432181,-206.09,0.00027844,2]
[356075121,1741883432191,-600.0,0.000279,10]
[356075122,1741883432199,-206.09,0.00027917,2]
[356075123,1741883432209,-206.09,0.00027989,2]
[356075124,1741883432218,-8099.76392374,0.00027997,31]
[356075125,1741883432228,-6000.0,0.00028,30]
[356075126,1741883432237,-206.09,0.00028061,2]
[356075127,1741883432246,-206.09,0.00028134,2]
[356075128,1741883432259,-206.09,0.00028206,2]
[356075129,1741883432269,-206.09,0.00028278,2]
[356075130,1741883432280,-900.0,0.000283,10]
[356075131,1741883432289,-206.09,0.00028351,2]
[356075132,1741883432303,-670.50556743,0.0002839,2]
[356075133,1741883432313,-1200.0,0.000284,10]
[356075134,1741883432322,-150.0,0.00028414,2]
[356075135,1741883432332,-150.0,0.00028415,2]
[356075136,1741883432341,-150.0,0.00028418,2]
[356075137,1741883432351,-150.0,0.00028422,2]
[356075138,1741883432361,-206.09,0.00028423,2]
[356075139,1741883432370,-150.0,0.00028425,2]
[356075140,1741883432381,-150.0,0.00028433,2]
[356075141,1741883432391,-150.0,0.00028437,2]
[356075142,1741883432401,-150.0,0.00028438,2]
[356075143,1741883432411,-150.0,0.00028443,2]
[356075145,1741883432421,-150.0,0.00028443,2]
[356075146,1741883432431,-150.0,0.00028447,2]
[356075147,1741883432440,-150.0,0.00028449,2]
[356075148,1741883432450,-500.0,0.00028449,18]
[356075149,1741883432465,-500.0,0.00028449,18]
[356075150,1741883432479,-177507.01232697,0.0002845,30]
[356075151,1741883432491,-8820.0,0.0002845,30]
[356075165,1741883437757,-1582.494,0.0002845,30]
[356075166,1741883437813,-1908.24,0.0002845,30]
[356075167,1741883437824,-284.4,0.0002845,30]
[356075168,1741883437870,-483.38612668,0.0002845,30]
[356075169,1741883437978,-1301.22,0.0002845,30]
[356075172,1741883439991,-394.32139738,0.0002845,30]
[356075173,1741883440004,-2617.05977064,0.0002845,30]
[356075174,1741883440016,-1401.6,0.0002845,30]
[356075179,1741883440429,-426.58519907,0.0002845,30]
[356075182,1741883440441,-15076.63931114,0.0002845,30]
[356075184,1741883440452,-150.0,0.0002845,2]
[356075186,1741883440462,-150.0,0.00028451,2]
[356075188,1741883440471,-150.0,0.00028453,2]
[356075190,1741883440480,-150.0,0.00028453,2]
[356075192,1741883440489,-256.70302755,0.00028454,2]
[356075194,1741883440499,-150.0,0.0002846,2]
[356075196,1741883440510,-150.0,0.00028463,2]
[356075197,1741883440518,-150.0,0.00028463,2]
[356075199,1741883440527,-150.0,0.00028464,2]
[356075201,1741883440538,-150.0,0.00028465,2]
[356075204,1741883440549,-150.0,0.00028469,2]
[356075205,1741883440558,-11719.09340011,0.00028469,3]
[356075208,1741883440570,-425.33046105,0.00028469,3]
[356075210,1741883440581,-999.60410506,0.00028469,3]
[356075444,1741883442962,-731.84817628,0.00028469,3]
[356075446,1741883442974,-15325.93651203,0.0002847,3]
[356075464,1741883443126,-192812.20562597,0.0002847,3]
[356075466,1741883443136,-22646.2266959,0.0002847,3]
[356075468,1741883443145,-151.51,0.0002847,2]
[356075470,1741883443155,-150.0,0.00028471,2]
[356075472,1741883443164,-150.0,0.00028471,2]
[356075474,1741883443173,-670.50556737,0.00028473,2]
[356075476,1741883443183,-150.0,0.00028477,2]
[356075478,1741883443192,-500.0,0.00028479,18]
[356075479,1741883443201,-566.22911438,0.00028479,18]
[356075481,1741883443210,-556.704146,0.00028479,18]
[356075483,1741883443220,-162.21,0.00028479,18]
[356075485,1741883443229,-13875.8761425,0.00028479,3]
[356075487,1741883443239,-444.21161477,0.00028479,2]
[356075489,1741883443249,-500.0,0.00028479,2]
[356075491,1741883443258,-500.0,0.00028479,2]
[356075493,1741883443267,-500.0,0.00028479,2]
[356075495,1741883443276,-500.0,0.00028479,2]
[356075497,1741883443286,-500.0,0.00028479,2]
[356075499,1741883443295,-393.55658269,0.00028479,2]
[356075501,1741883443310,-2264.62266959,0.0002848,3]
[356075503,1741883443320,-50000.0,0.0002848,7]
[356075505,1741883443331,-26332.64572634,0.0002848,2]
[356075507,1741883443343,-2695.75,0.0002848,2]
[356075510,1741883443354,-781.89450995,0.0002848,2]
[356075512,1741883443366,-12171.8442161,0.0002848,2]
[356075514,1741883443378,-9160.54051025,0.0002848,2]
[356075516,1741883443391,-9622.39150227,0.0002848,2]
[356075518,1741883443403,-9010.0609621,0.0002848,2]
[356075521,1741883443414,-3922.4665164,0.0002848,2]
[356075523,1741883443426,-2921.08616189,0.0002848,2]
[356075525,1741883443436,-2385.01509259,0.0002848,2]
[356075527,1741883443447,-1045.14,0.0002848,2]
[356075702,1741883445984,-1.812e-05,0.0002848,2]
[356075703,1741883445998,-438.25291837,0.0002848,2]
[356075704,1741883446065,-8133.21448119,0.0002848,2]
[356075705,1741883446077,-4070.2743,0.0002848,2]
[356075763,1741884320579,-176.77,0.00021986,2]
[356075764,1741884320602,-550.0,0.00024185,2]
[356075765,1741884320624,-550.0,0.00024674,2]
[356075766,1741884320646,-752.3,0.00025279,2]
[356075767,1741884320670,-953.738694,0.00027023,2]
[356075768,1741884320694,-7017.191306,0.0002716,2]
[356075769,1741884321634,-10000.0,0.0002716,2]
[356075770,1741884322551,-6882.808694,0.0002716,2]
[356075771,1741884322575,-150.0,0.0002726,2]
[356075772,1741884322598,-2000.0,0.00027286,2]
[356075773,1741884322622,-250.0,0.00027289,2]
[356075774,1741884322647,-289.32,0.00027289,2]
[356075775,1741884322671,-175.34,0.00027307,2]
[356075776,1741884322697,-216.38,0.00027308,2]
[356075777,1741884322721,-36.151306,0.00027343,2]
[356075778,1741884323566,-163.848694,0.00027343,2]
[356075779,1741884323591,-289.32,0.0002736,2]
[356075780,1741884323613,-360.79,0.00027371,2]
[356075781,1741884323635,-1552.53,0.00027397,14]
[356075782,1741884323656,-7633.511306,0.00027404,2]
[356075783,1741884324562,-4362.478694,0.00027404,2]
[356075784,1741884324585,-289.32,0.00027432,2]
[356075785,1741884324606,-1000.0,0.00027453,2]
[356075786,1741884324628,-208.09,0.00027481,30]
[356075787,1741884324649,-1999.02,0.00027481,2]
[356075788,1741884324670,-1453.11,0.000275,2]
[356075789,1741884324694,-267.08,0.000275,2]
[356075790,1741884324715,-299.99,0.000275,12]
[356075791,1741884324737,-120.911306,0.00027504,2]
[356075792,1741884325989,-168.408694,0.00027504,2]
[356075793,1741884326012,-200.0,0.0002751,2]
[356075794,1741884326038,-752.3,0.00027542,2]
[356075795,1741884326063,-289.32,0.00027576,2]
[356075796,1741884326085,-289.32,0.00027648,2]
[356075797,1741884326107,-150.0,0.00027648,2]
[356075798,1741884326129,-213.28,0.00027671,2]
[356075799,1741884326151,-289.32,0.00027719,2]
[356075800,1741884326175,-289.32,0.00027791,2]
[356075801,1741884326196,-158.0,0.00027796,120]
[356075802,1741884326216,-610.0,0.00027796,120]
[356075803,1741884326238,-501.0,0.00027848,2]
[356075804,1741884326260,-289.32,0.00027863,2]
[356075805,1741884326281,-4000.0,0.00027874,3]
[356075806,1741884326302,-204.98269598,0.000279,4]
[356075807,1741884326325,-289.32,0.00027935,2]
[356075808,1741884326347,-1306.10861002,0.00028,18]
[356075816,1741884632034,-241.5,0.00026849,2]
[356075817,1741884632043,-986.65,0.00027357,120]
[356075818,1741884632053,-1500.0,0.00027388,2]
[356075819,1741884632063,-929.0,0.0002739,2]
[356075820,1741884632071,-848.64,0.0002739,2]
[356075821,1741884632081,-500.0,0.00027392,2]
[356075822,1741884632090,-2093.12,0.00027396,2]
[356075823,1741884632100,-204.98269598,0.000279,4]
[356075824,1741884632109,-153.0,0.00027975,120]
[356075825,1741884632121,-404.63185217,0.00028,18]
[356075826,1741884632132,-152.53853781,0.00028,18]
[356075827,1741884632142,-159.796,0.00028,18]
[356075828,1741884632151,-5001.78268238,0.00028,5]
[356075829,1741884632161,-289.32,0.00028007,2]
[356075830,1741884632172,-200.0,0.00028007,2]
[356075831,1741884632182,-289.32,0.00028079,2]
[356075832,1741884632191,-166.69,0.00028099,2]
[356075833,1741884632201,-344.75,0.000281,2]
[356075834,1741884632211,-501.0,0.00028135,2]
[356075835,1741884632221,-289.32,0.0002815,2]
[356075836,1741884632230,-193.95525,0.000282,41]
[356075837,1741884632239,-289.32,0.00028222,2]
[356075838,1741884632248,-150.0,0.00028279,2]
[356075839,1741884632256,-150.0,0.00028286,2]
[356075840,1741884632265,-150.0,0.00028289,2]
[356075841,1741884632275,-289.32,0.00028294,2]
[356075842,1741884632283,-150.0,0.00028294,2]
[356075843,1741884632292,-151.56021208,0.00028297,2]
[356075844,1741884632301,-16.78776873,0.00028299,2]
[356075845,1741884632314,-133.21223127,0.00028299,2]
[356075846,1741884632323,-150.0,0.000283,2]
[356075847,1741884632332,-150.0,0.00028305,2]
[356075848,1741884632341,-150.0,0.00028306,2]
[356075849,1741884632350,-150.0,0.00028307,2]
[356075850,1741884632359,-150.0,0.00028308,2]
[356075851,1741884632369,-150.0,0.00028309,2]
[356075852,1741884632378,-150.0,0.00028309,2]
[356075853,1741884632387,-150.0,0.00028313,2]
[356075854,1741884632397,-150.0,0.00028314,2]
[356075855,1741884632406,-150.0,0.00028315,2]
[356075857,1741884632416,-150.0,0.00028316,2]
[356075859,1741884632425,-150.0,0.00028318,2]
[356075861,1741884632434,-150.0,0.00028331,2]
[356075863,1741884632443,-291.75663553,0.00028335,2]
[356075865,1741884632452,-150.0,0.00028344,2]
[356075867,1741884632461,-150.0,0.00028352,2]
[356075869,1741884632470,-150.0,0.00028353,2]
[356075871,1741884632479,-150.0,0.00028353,2]
[356075873,1741884632488,-150.0,0.00028356,2]
[356075875,1741884632497,-551.33663526,0.0002836,16]
[356075877,1741884632507,-150.0,0.00028361,2]
[356075879,1741884632515,-150.0,0.00028362,2]
[356075881,1741884632525,-289.32,0.00028366,2]
[356075883,1741884632534,-1307.20545945,0.00028369,2]
[356075885,1741884632543,-318.502126,0.00028369,2]
[356075887,1741884632554,-1564.16322837,0.00028369,2]
[356075889,1741884632568,-473.62814563,0.00028369,2]
[356075891,1741884632577,-1360.5717,0.00028369,2]
[356075893,1741884632586,-1339.7216,0.00028369,2]
[356075895,1741884632595,-150.0,0.0002837,2]
[356075897,1741884632604,-478.93254813,0.0002837,2]
[356075899,1741884632614,-1548.5703,0.0002837,2]
[356075901,1741884632623,-150.0,0.00028371,2]
[356075903,1741884632632,-150.0,0.00028373,2]
[356075905,1741884632641,-150.0,0.00028377,2]
[356075908,1741884632650,-150.0,0.00028378,2]
[356075910,1741884632659,-6005.3079,0.00028379,2]
[356075912,1741884632670,-150.0,0.00028379,2]
[356075914,1741884632679,-150.0,0.00028392,2]
[356075916,1741884632688,-150.0,0.00028392,2]
[356075918,1741884632698,-150.0,0.00028397,2]
[356075921,1741884632707,-219.34,0.000284,4]
[356075924,1741884632716,-170.60064694,0.000284,4]
[356075926,1741884632725,-170.60064694,0.000284,4]
[356075929,1741884632734,-600.34866511,0.000284,4]
[356075931,1741884632743,-600.34866511,0.000284,4]
[356075933,1741884632752,-600.34866511,0.000284,4]
[356075935,1741884632762,-600.34866511,0.000284,4]
[356075936,1741884632771,-600.34866511,0.000284,4]
[356075938,1741884632781,-600.34866511,0.000284,4]
[356075939,1741884632790,-600.34866511,0.000284,4]
[356075940,1741884632799,-600.34866511,0.000284,4]
[356075941,1741884632809,-600.34866511,0.000284,4]
[356075942,1741884632818,-600.34866511,0.000284,4]
[356075943,1741884632826,-600.34866511,0.000284,4]
[356075944,1741884632835,-600.34866511,0.000284,4]
[356075945,1741884632844,-600.34866511,0.000284,4]
[356075946,1741884632853,-600.34866511,0.000284,4]
[356075947,1741884632863,-600.34866511,0.000284,4]
[356075948,1741884632872,-600.34866511,0.000284,4]
[356075949,1741884632882,-600.34866511,0.000284,4]
[356075950,1741884632891,-600.34866511,0.000284,4]
[356075951,1741884632900,-600.34866511,0.000284,4]
[356075952,1741884632909,-600.34,0.000284,4]
[356075953,1741884632919,-1400.81355193,0.000284,4]
[356075954,1741884632929,-1400.81355193,0.000284,4]
[356075955,1741884632938,-1400.81355193,0.000284,4]
[356075956,1741884632947,-1400.81355193,0.000284,4]
[356075957,1741884632956,-1400.81355193,0.000284,4]
[356075958,1741884632965,-1400.81355193,0.000284,4]
[356075959,1741884632974,-1236.92056369,0.000284,4]
[356075960,1741884632986,-163.89298824,0.000284,4]
[356075961,1741884632995,-1400.81355193,0.000284,4]
[356075962,1741884633004,-1400.81355193,0.000284,4]
[356075963,1741884633013,-1400.81355193,0.000284,4]
[356075964,1741884633023,-1400.81355193,0.000284,4]
[356075965,1741884633032,-1400.81355193,0.000284,4]
[356075966,1741884633041,-1400.81355193,0.000284,4]
[356075967,1741884633050,-1400.81355193,0.000284,4]
[356075968,1741884633060,-1400.81355193,0.000284,4]
[356075969,1741884633069,-1400.81355193,0.000284,4]
[356075970,1741884633078,-1400.81355193,0.000284,4]
[356075971,1741884633087,-1400.81355193,0.000284,4]
[356075972,1741884633097,-150.0,0.00028401,2]
[356075973,1741884633106,-185.03432395,0.00028403,2]
[356075974,1741884633119,-150.0,0.00028408,2]
[356075975,1741884633128,-150.0,0.0002841,2]
[356075976,1741884633138,-150.0,0.00028411,2]
[356075977,1741884633147,-21.54252802,0.00028412,2]
[356075978,1741884633159,-128.45747198,0.00028412,2]
[356075979,1741884633169,-150.0,0.00028413,2]
[356075980,1741884633179,-150.0,0.00028413,2]
[356075981,1741884633188,-150.0,0.00028415,2]
[356075982,1741884633202,-150.0,0.00028416,2]
[356075983,1741884633216,-150.0,0.00028418,2]
[356075984,1741884633227,-150.0,0.00028421,2]
[356075985,1741884633237,-150.0,0.00028421,2]
[356075986,1741884633246,-501.0,0.00028422,2]
[356075987,1741884633256,-150.0,0.00028425,2]
[356075988,1741884633266,-150.0,0.00028425,2]
[356075989,1741884633276,-4080.75503706,0.00028428,7]
[356075990,1741884633286,-150.0,0.00028428,2]
[356075991,1741884633295,-150.0,0.00028434,2]
[356075992,1741884633305,-289.32,0.00028438,2]
[356075993,1741884633315,-150.0,0.00028439,2]
[356075994,1741884633324,-150.0,0.00028443,2]
[356075995,1741884633335,-1768.87351046,0.00028447,7]
[356075996,1741884633344,-150.0,0.00028448,2]
[356075997,1741884633353,-500.0,0.00028449,18]
[356075998,1741884633363,-150.0,0.00028452,2]
[356075999,1741884633372,-150.0,0.00028453,2]
[356076000,1741884633382,-150.0,0.00028453,2]
[356076001,1741884633391,-264.17504187,0.00028454,2]
[356076002,1741884633401,-150.0,0.00028456,2]
[356076003,1741884633411,-693.28488955,0.00028458,2]
[356076004,1741884633421,-151.52,0.00028459,2]
[356076005,1741884633431,-500.0,0.00028459,18]
[356076006,1741884633441,-500.0,0.00028459,18]
[356076007,1741884633451,-511.55207186,0.00028459,18]
[356076008,1741884633460,-500.0,0.00028459,18]
[356076009,1741884633470,-500.0,0.00028459,18]
[356076010,1741884633480,-500.0,0.00028459,18]
[356076011,1741884633489,-14532.4692075,0.00028459,3]
[356076012,1741884633632,-73848.111268,0.00028459,3]
[356076013,1741884633642,-7935.89757862,0.00028459,3]
[356076014,1741884633663,-487.9875,0.00028459,3]
[356076015,1741884633675,-392.91999999,0.00028459,3]
[356076016,1741884633688,-3693.4,0.00028459,3]
[356076017,1741884633699,-115.59213219,0.00028459,3]
[356076018,1741884633709,-525.68674441,0.0002846,3]
[356076019,1741884633722,-6418.60825931,0.0002846,3]
[356076020,1741884633735,-5681.50220708,0.0002846,3]
[356076021,1741884633745,-323.80565595,0.0002846,3]
[356076022,1741884633757,-1105.0,0.0002846,3]
[356076045,1741884638052,-445.55,0.00028459,2]
[356076048,1741884638064,-54.63492217,0.00028459,2]
[356076050,1741884638073,-941.24024934,0.0002846,3]
[356076054,1741884638105,-500.0,0.00028459,18]
[356076056,1741884638115,-9493.85687916,0.0002846,3]
[356076058,1741884638129,-3057.374,0.0002846,3]
[356076061,1741884638160,-5752.78626752,0.0002846,3]
[356076062,1741884638215,-519.750011,0.0002846,3]
[356076063,1741884638270,-9479.26349559,0.0002846,3]
[356076064,1741884638281,-3201.43281876,0.0002846,3]
[356076065,1741884638293,-1001.89352422,0.0002846,3]
[356076066,1741884638479,-1418.98397657,0.0002846,3]
[356076067,1741884638490,-326.92083092,0.0002846,3]
[356076083,1741884640007,-500.0,0.00028459,18]
[356076085,1741884640017,-1255.08392327,0.0002846,3]
[356076087,1741884640026,-3623.39627144,0.0002846,3]
[356076088,1741884640036,-293.44735925,0.0002846,2]
[356076089,1741884640052,-478.93254812,0.0002846,2]
[356076090,1741884640062,-151509.566529,0.0002846,3]
[356076091,1741884640071,-28987.1701715,0.0002846,3]
[356076092,1741884640081,-5435.09440716,0.0002846,3]
[356076093,1741884640090,-150.0,0.00028462,2]
[356076094,1741884640099,-150.0,0.00028464,2]
[356076095,1741884640109,-150.0,0.00028465,2]
[356076096,1741884640122,-1835.0,0.00028466,2]
[356076097,1741884640131,-150.0,0.00028467,2]
[356076098,1741884640141,-150.0,0.00028467,2]
[356076099,1741884640150,-500.0,0.00028468,18]
[356076100,1741884640160,-499.12544065,0.00028468,18]
[356076101,1741884640169,-500.0,0.00028468,18]
[356076102,1741884640181,-500.0,0.00028468,18]
[356076103,1741884640190,-500.0,0.00028468,18]
[356076104,1741884640199,-500.0,0.00028468,18]
[356076105,1741884640210,-500.0,0.00028468,18]
[356076106,1741884640220,-500.0,0.00028468,18]
[356076107,1741884640229,-500.0,0.00028468,18]
[356076108,1741884640239,-500.0,0.00028468,18]
[356076109,1741884640248,-500.0,0.00028468,18]
[356076110,1741884640258,-500.0,0.00028468,18]
[356076111,1741884640267,-503.10809846,0.00028468,18]
[356076112,1741884640277,-500.0,0.00028468,18]
[356076113,1741884640286,-517.90320477,0.00028468,18]
[356076114,1741884640295,-500.0,0.00028468,18]
[356076115,1741884640304,-500.0,0.00028468,18]
[356076116,1741884640314,-500.0,0.00028468,18]
[356076117,1741884640324,-500.0,0.00028468,18]
[356076118,1741884640333,-629.62,0.00028468,18]
[356076119,1741884640342,-500.0,0.00028468,18]
[356076120,1741884640351,-500.0,0.00028468,18]
[356076121,1741884640360,-500.0,0.00028468,18]
[356076122,1741884640370,-500.0,0.00028468,18]
[356076123,1741884640379,-500.2401571,0.00028468,18]
[356076124,1741884640388,-500.0,0.00028468,18]
[356076125,1741884640397,-500.0,0.00028468,18]
[356076126,1741884640407,-500.0,0.00028468,18]
[356076127,1741884640416,-559.58,0.00028468,18]
[356076128,1741884640425,-3279.733063,0.00028468,18]
[356076129,1741884640440,-500.0,0.00028468,18]
[356076130,1741884640450,-500.0,0.00028468,18]
[356076132,1741884640460,-500.0,0.00028468,18]
[356076134,1741884640469,-556.6,0.00028468,18]
[356076136,1741884640478,-500.0,0.00028468,18]
[356076138,1741884640488,-525.45,0.00028468,18]
[356076140,1741884640497,-500.0,0.00028468,18]
[356076142,1741884640507,-500.0,0.00028468,18]
[356076144,1741884640516,-500.0,0.00028468,18]
[356076146,1741884640525,-500.0,0.00028468,18]
[356076148,1741884640534,-500.0,0.00028468,18]
[356076150,1741884640543,-500.0,0.00028468,18]
[356076152,1741884640553,-500.0,0.00028468,18]
[356076173,1741884640723,-500.0,0.00028468,18]
[356076175,1741884640734,-500.0,0.00028468,18]
[356076177,1741884640743,-500.0,0.00028468,18]
[356076179,1741884640752,-500.0,0.00028468,18]
[356076180,1741884640762,-500.0,0.00028468,18]
[356076182,1741884640772,-500.0,0.00028468,18]
[356076184,1741884640781,-500.0,0.00028468,18]
[356076186,1741884640790,-500.0,0.00028468,18]
[356076188,1741884640799,-500.0,0.00028468,18]
[356076190,1741884640809,-500.0,0.00028468,18]
[356076192,1741884640818,-500.0,0.00028468,18]
[356076194,1741884640827,-500.0,0.00028468,18]
[356076196,1741884640836,-500.0,0.00028468,18]
[356076198,1741884640846,-500.0,0.00028468,18]
[356076200,1741884640855,-500.0,0.00028468,18]
[356076202,1741884640864,-500.0,0.00028468,18]
[356076204,1741884640874,-500.0,0.00028468,18]
[356076206,1741884640883,-500.0,0.00028468,18]
[356076208,1741884640892,-500.0,0.00028468,18]
[356076210,1741884640902,-500.0,0.00028468,18]
[356076212,1741884640912,-500.0,0.00028468,18]
[356076214,1741884640922,-500.0,0.00028468,18]
[356076216,1741884640934,-500.0,0.00028468,18]
[356076218,1741884640943,-500.0,0.00028468,18]
[356076220,1741884640953,-500.0,0.00028468,18]
[356076222,1741884640962,-500.0,0.00028468,18]
[356076224,1741884640972,-541.93944445,0.00028468,18]
[356076226,1741884640982,-500.0,0.00028468,18]
[356076228,1741884640992,-500.0,0.00028468,18]
[356076230,1741884641001,-500.0,0.00028468,18]
[356076232,1741884641010,-500.0,0.00028468,18]
[356076234,1741884641019,-500.0,0.00028468,18]
[356076236,1741884641028,-500.0,0.00028468,18]
[356076238,1741884641037,-220.66641784,0.00028468,18]
[356076240,1741884641046,-501.8093179,0.00028468,18]
[356076242,1741884641055,-500.0,0.00028468,18]
[356076244,1741884641065,-500.0,0.00028468,18]
[356076246,1741884641075,-500.0,0.00028468,18]
[356076248,1741884641084,-500.0,0.00028468,18]
[356076250,1741884641093,-500.0,0.00028468,18]
[356076252,1741884641103,-500.0,0.00028468,18]
[356076254,1741884641112,-254.28,0.00028468,18]
[356076256,1741884641122,-500.0,0.00028468,18]
[356076258,1741884641133,-500.0,0.00028468,18]
[356076260,1741884641143,-500.0,0.00028468,18]
[356076262,1741884641152,-500.0,0.00028468,18]
[356076264,1741884641163,-500.0,0.00028468,18]
[356076266,1741884641171,-500.0,0.00028468,18]
[356076268,1741884641183,-500.0,0.00028468,18]
[356076270,1741884641192,-500.0,0.00028468,18]
[356076272,1741884641201,-500.0,0.00028468,18]
[356076274,1741884641211,-500.0,0.00028468,18]
[356076276,1741884641220,-500.0,0.00028468,18]
[356076278,1741884641229,-500.0,0.00028468,18]
[356076280,1741884641238,-500.0,0.00028468,18]
[356076282,1741884641247,-500.0,0.00028468,18]
[356076284,1741884641256,-500.0,0.00028468,18]
[356076286,1741884641266,-500.0,0.00028468,18]
[356076288,1741884641275,-648.84,0.00028468,18]
[356076290,1741884641284,-500.0,0.00028468,18]
[356076292,1741884641293,-500.0,0.00028468,18]
[356076294,1741884641302,-500.0,0.00028468,18]
[356076296,1741884641311,-500.0,0.00028468,18]
[356076298,1741884641319,-500.0,0.00028468,18]
[356076300,1741884641328,-500.0,0.00028468,18]
[356076302,1741884641337,-500.0,0.00028468,18]
[356076304,1741884641346,-607.08,0.00028468,18]
[356076306,1741884641356,-507.26337502,0.00028468,18]
[356076308,1741884641365,-500.0,0.00028468,18]
[356076310,1741884641375,-500.0,0.00028468,18]
[356076312,1741884641384,-505.72067414,0.00028468,18]
[356076314,1741884641393,-500.0,0.00028468,18]